bitfinex/quotes_ETHUSD_20260107
["timestamp","ask_amount","ask_price","bid_price","bid_amount"]
[1767776856229,3.90263157,3233.5,3232.0,6.1881188]
[1767776856728,0.05880168,3232.8,3230.7,0.80628245]
[1767776856935,5.95262712,3233.1,3230.2,3.09572479]
[1767776857255,0.05880168,3232.9,3230.0,0.06080168]
[1767776857459,0.81,3232.8,3230.9,3.09508526]
[1767776857769,0.81,3232.7,3230.4,3.09551929]
[1767776857980,0.05880168,3232.9,3230.9,3.09506573]
[1767776858128,0.81,3232.6,3230.0,0.002]
[1767776858334,0.03866019,3233.3,3231.0,3.09501319]
[1767776858335,0.05260389,3233.0,3231.0,3.09501319]
[1767776858529,0.03866258,3233.1,3230.7,0.05260389]
[1767776858730,3.09319805,3232.9,3230.9,0.05260389]
[1767776858949,6.1863961,3232.9,3230.9,0.05260389]
[1767776859179,3.09319805,3232.9,3230.9,0.05260389]
[1767776859490,6.1861842,3233.1,3231.1,0.05260389]
[1767776859644,0.65483865,3232.8,3231.0,0.05260389]
[1767776860250,0.811,3232.7,3231.0,0.05260389]
[1767776860556,0.811,3232.7,3230.8,0.05260389]
[1767776860785,3.90438983,3232.7,3230.7,9.28591326]
[1767776861093,3.94305719,3232.7,3230.8,0.06807141]
[1767776861295,0.05880168,3233.9,3231.2,0.06807141]
[1767776861467,6.22332857,3233.8,3231.0,0.06807141]
[1767776861786,6.22332857,3233.8,3230.8,0.06807141]
[1767776861787,0.811,3233.7,3231.2,0.98288189]
[1767776861986,0.06807141,3233.5,3231.2,0.98288189]
[1767776862173,0.06807141,3233.3,3231.2,0.98288189]
[1767776862377,0.03866138,3233.2,3231.2,0.73488189]
[1767776862683,0.31807141,3233.1,3231.2,0.98488189]
[1767776862881,6.22486853,3233.0,3231.4,0.98288189]
[1767776863089,6.22486853,3233.0,3231.5,0.98288189]
[1767776863090,0.62929399,3232.9,3231.5,0.98288189]
[1767776863251,0.03866617,3232.8,3231.5,0.98288189]
[1767776863684,0.62929399,3232.9,3231.5,0.98288189]
[1767776863985,0.001,3233.2,3231.4,0.98288189]
[1767776863986,0.811,3233.1,3231.4,0.98288189]
[1767776864305,0.001,3233.2,3231.6,1.0509533]
[1767776864584,0.001,3233.2,3231.9,0.98288189]
[1767776864883,0.001,3233.2,3232.3,0.98288189]
[1767776865055,6.18295358,3234.7,3232.3,1.0509533]
[1767776865256,0.84964465,3234.6,3232.6,0.98288189]
[1767776865465,0.39411214,3234.5,3232.6,0.98288189]
[1767776865661,0.39411214,3234.5,3232.5,0.08352022]
[1767776865662,0.03864704,3234.4,3232.7,0.81]
[1767776865862,0.03864704,3234.4,3232.8,0.98288189]
[1767776866463,0.811,3234.8,3232.8,1.06640211]
[1767776866780,3.13018449,3234.7,3233.2,6.18582208]
[1767776866950,0.31301845,3234.6,3233.4,0.98288189]
[1767776867150,0.03864584,3234.5,3233.4,0.98288189]
[1767776867784,0.84964584,3234.5,3233.4,0.98288189]
[1767776868973,0.84964584,3234.5,3233.5,3.09262409]
[1767776869185,3.94135472,3234.5,3233.4,4.07558289]
[1767776869383,0.39413547,3234.4,3233.4,0.98288189]
[1767776869574,0.03864823,3234.3,3233.4,0.98288189]
[1767776869774,0.03864823,3234.3,3233.4,4.07558218]
[1767776870292,0.43278251,3234.4,3233.5,0.98288189]
[1767776870655,0.39413547,3234.4,3233.5,0.98288189]
[1767776870881,0.811,3234.5,3233.6,0.98288189]
[1767776871061,0.84964584,3234.5,3233.6,4.07540176]
[1767776871381,0.811,3234.5,3233.7,0.98288189]
[1767776871853,0.811,3234.5,3233.6,3.09251987]
[1767776872054,3.90268798,3234.5,3233.7,0.98288189]
[1767776872286,1.2012688,3234.5,3233.6,3.09251987]
[1767776872484,0.811,3234.5,3233.6,3.09251987]
[1767776873179,0.08352022,3235.6,3233.4,0.98288189]
[1767776873180,3.90122321,3235.0,3233.4,0.98288189]
[1767776873486,0.03864107,3234.9,3233.4,0.98288189]
[1767776874588,0.03863509,3235.4,3233.4,1.06640211]
[1767776875115,0.001,3234.6,3233.9,0.98288189]
[1767776875269,0.001,3234.6,3233.9,1.69963752]
[1767776876069,0.03863748,3235.2,3233.9,1.69963752]
[1767776876271,0.03863748,3235.2,3233.7,3.09242091]
[1767776876474,0.03863748,3235.2,3233.8,0.98288189]
[1767776877209,3.09109455,3235.1,3233.9,3.09224156]
[1767776877375,0.03863987,3235.0,3233.9,3.09224156]
[1767776877575,0.03863987,3235.0,3233.9,4.07512345]
[1767776877776,0.6220829,3234.9,3233.9,4.07512345]
[1767776877991,1.4320829,3234.9,3234.0,0.98288189]
[1767776878708,0.03864226,3234.8,3234.0,0.98288189]
[1767776878907,0.6220829,3234.9,3234.0,0.98288189]
[1767776879098,3.71342472,3234.9,3234.0,0.98288189]
[1767776879286,0.37520646,3234.8,3234.1,0.98288189]
[1767776880297,0.37520646,3234.8,3233.9,3.09223704]
[1767776880498,0.37520646,3234.8,3234.0,3.09213143]
[1767776880883,0.37520646,3234.8,3233.6,0.98288189]
[1767776881211,6.18314474,3234.6,3233.6,0.98288189]
[1767776881452,6.18314474,3234.6,3232.3,3.33722553]
[1767776881453,0.62217882,3234.5,3233.2,0.98288189]
[1767776881656,0.62217882,3234.5,3233.2,4.07571776]
[1767776881955,0.66082466,3234.5,3233.3,3.09281534]
[1767776882319,0.66082466,3234.5,3233.6,3.09251485]
[1767776882653,0.37520646,3234.8,3233.7,0.97347995]
[1767776882853,3.09128566,3234.9,3233.7,0.97347995]
[1767776883025,0.03864226,3234.8,3233.7,0.97347995]
[1767776883229,3.09147679,3234.7,3233.9,0.97347995]
[1767776883831,0.03864465,3234.6,3233.4,0.97347995]
[1767776884150,0.03864465,3234.6,3233.6,0.98269181]
[1767776884456,0.62215982,3234.5,3233.6,4.07521853]
[1767776884753,0.62215982,3234.5,3233.7,0.98269181]
[1767776885186,0.62215982,3234.5,3233.8,0.98269181]
[1767776886788,0.62215982,3234.5,3233.0,3.09309806]
[1767776886789,0.81,3234.4,3233.0,3.09309806]
[1767776886960,0.81,3234.4,3232.9,0.98269181]
[1767776887280,0.81,3234.4,3232.8,0.81]
[1767776887281,0.001,3234.2,3232.8,3.09322831]
[1767776887584,0.001,3234.2,3232.9,3.09316074]
[1767776887746,0.61847183,3234.1,3232.9,3.71181373]
[1767776888678,0.61847183,3234.1,3232.4,3.17716187]
[1767776888679,0.61847183,3234.1,3232.1,0.98269181]
[1767776888680,0.92348803,3234.0,3232.1,0.98269181]
[1767776889240,9.27672468,3233.9,3232.2,3.09385884]
[1767776889445,0.81,3233.8,3232.2,3.09385884]
[1767776889761,1.00867247,3233.7,3232.3,0.71704715]
[1767776891303,6.1850569,3233.6,3232.3,3.81081483]
[1767776891460,6.1850569,3233.6,3232.3,6.90458706]
[1767776891461,3.09252845,3233.6,3232.3,6.90458706]
[1767776891790,6.1850569,3233.6,3232.3,3.81081483]
[1767776892082,0.81,3233.5,3232.4,0.98269181]
[1767776892252,0.81,3233.5,3232.5,0.47935066]
[1767776892573,0.81,3233.5,3232.0,0.08352022]
[1767776892574,0.81,3233.5,3232.0,0.98269181]
[1767776892786,0.81,3233.5,3232.1,3.09390347]
[1767776892988,0.81,3233.5,3232.2,3.09379199]
[1767776893204,0.502,3233.5,3232.3,7.17021438]
[1767776893503,0.81,3233.9,3232.4,0.98269181]
[1767776893704,0.03865182,3234.0,3232.7,0.98269181]
[1767776894686,0.03865182,3234.0,3232.5,0.71702144]
[1767776895288,6.18448312,3233.9,3232.5,3.8105785]
[1767776895492,0.03865421,3233.8,3232.5,3.8105785]
[1767776895681,0.62231373,3233.7,3232.6,0.38105785]
[1767776896479,0.62231373,3233.7,3232.6,1.36374966]
[1767776896795,4.0155563,3234.1,3232.7,0.98269181]
[1767776896796,6.18417392,3234.1,3232.7,0.98269181]
[1767776896999,0.03865182,3234.0,3232.7,0.98269181]
[1767776897495,3.09224156,3233.9,3232.8,3.09329373]
[1767776898155,3.09217525,3234.0,3232.8,6.18658746]
[1767776898358,0.03865301,3233.9,3232.9,0.71692793]
[1767776898558,3.09211729,3234.1,3232.9,1.52692793]
[1767776898799,0.03865182,3234.0,3232.9,1.52892793]
[1767776898956,0.03865182,3234.0,3232.9,0.71892793]
[1767776899589,0.03865182,3234.0,3233.0,3.09310238]
[1767776899795,0.001,3234.2,3233.1,1.49509004]
[1767776899999,0.001,3234.2,3233.2,0.98269181]
[1767776900289,0.92348803,3235.0,3233.2,0.98269181]
[1767776900290,0.03864107,3234.9,3233.2,0.98269181]
[1767776900478,0.03864107,3234.9,3233.4,0.98269181]
[1767776900679,3.09112888,3235.1,3233.4,0.98269181]
[1767776900884,3.90097285,3235.3,3233.4,0.98269181]
[1767776901083,0.81,3235.3,3233.6,0.98269181]
[1767776901295,0.03863748,3235.2,3233.8,0.98269181]
[1767776901457,0.03863748,3235.2,3234.0,6.18429188]
[1767776901665,0.81,3235.3,3234.0,6.18429188]
[1767776901898,3.12946394,3235.4,3234.0,7.16698369]
[1767776902200,3.09073251,3235.5,3234.1,0.98269181]
[1767776902686,0.811,3235.7,3234.1,0.98269181]
[1767776902887,0.42877868,3235.6,3234.3,0.98269181]
[1767776903256,0.811,3235.7,3234.3,0.98269181]
[1767776903462,0.001,3235.7,3234.3,0.98269181]
[1767776903662,0.001,3235.7,3234.5,0.98269181]
[1767776903865,0.001,3235.7,3234.7,0.98269181]
[1767776905823,0.001,3235.7,3234.8,6.18276244]
[1767776906127,0.001,3235.7,3234.8,6.60089265]
[1767776907001,0.001,3235.7,3234.8,7.58358446]
[1767776907201,0.001,3235.7,3234.8,4.49220324]
[1767776907710,0.001,3235.7,3234.8,7.58358446]
[1767776908421,0.001,3235.7,3234.9,0.98269181]
[1767776908621,0.84862554,3236.2,3234.9,1.74105026]
[1767776908832,0.81,3236.2,3235.0,0.98269181]
[1767776909235,3.12839986,3236.5,3235.2,0.98269181]
[1767776909437,3.08968633,3236.6,3235.2,0.98269181]
[1767776909612,0.03862316,3236.4,3235.2,1.17031301]
[1767776910010,0.31283059,3236.5,3235.2,1.17031301]
[1767776910011,0.31283059,3236.5,3235.3,7.16449875]
[1767776910240,0.31283059,3236.5,3235.4,0.98269181]
[1767776910241,0.35145255,3236.5,3235.4,0.98269181]
[1767776910536,1.73348803,3236.8,3235.4,0.98269181]
[1767776910537,0.03862316,3236.4,3235.4,0.98269181]
[1767776910706,0.03862316,3236.4,3235.2,3.27860838]
[1767776911339,0.03862316,3236.4,3235.2,6.36960739]
[1767776911509,0.03862196,3236.5,3235.2,6.36960739]
[1767776911943,0.03862196,3236.5,3235.3,0.90184978]
[1767776912136,3.12521361,3236.7,3235.4,0.90184978]
[1767776912639,3.12809419,3236.8,3235.4,0.90184978]
[1767776913144,6.21757,3236.8,3235.4,0.90184978]
[1767776913311,3.12809419,3236.8,3235.4,0.90184978]
[1767776913515,6.21757,3236.8,3235.4,0.90184978]
[1767776913716,0.621757,3236.7,3235.4,0.90184978]
[1767776914444,3.08966199,3236.6,3235.6,0.90184978]
[1767776915455,3.08966199,3236.6,3235.6,1.71084978]
[1767776915757,3.74998326,3236.7,3235.7,0.90184978]
[1767776916541,3.74998326,3236.7,3235.7,3.99234918]
[1767776916730,3.74998326,3236.7,3235.8,0.90184978]
[1767776916932,3.74998326,3236.7,3235.6,0.809]
[1767776916933,6.83958994,3236.7,3235.6,0.809]
[1767776917131,7.79981102,3236.7,3235.6,0.809]
[1767776917456,7.79981102,3236.7,3235.4,0.90184978]
[1767776917657,7.79981102,3236.7,3235.5,3.09068564]
[1767776917832,0.99884066,3236.5,3235.3,3.09088788]
[1767776918035,0.99884066,3236.3,3235.0,0.90184978]
[1767776918229,0.7799811,3236.6,3234.6,0.90184978]
[1767776918230,3.09013936,3236.1,3234.6,0.90184978]
[1767776919163,3.08983835,3236.5,3234.8,0.90184978]
[1767776919636,0.03862316,3236.4,3234.8,0.90184978]
[1767776919844,0.31284615,3236.3,3234.8,0.90184978]
[1767776920236,3.09004387,3236.2,3234.9,6.18257132]
[1767776920437,3.09004387,3236.2,3234.9,7.0844211]
[1767776920861,3.12866941,3236.2,3234.9,7.0844211]
[1767776921168,3.12866941,3236.2,3234.9,3.99313544]
[1767776921373,3.12866941,3236.2,3235.0,0.39931354]
[1767776922141,6.21871328,3236.2,3235.0,0.39931354]
[1767776922656,6.21871328,3236.2,3235.1,3.09109455]
[1767776923162,6.21871328,3236.2,3235.0,3.49046549]
[1767776923856,3.12866941,3236.2,3235.0,3.49046549]
[1767776924057,3.47282097,3236.2,3235.1,0.74835714]
[1767776924260,3.43419543,3236.2,3235.1,0.74835714]
[1767776924559,6.56286484,3236.2,3235.1,0.74835714]
[1767776924757,6.5242393,3236.2,3235.1,3.83936963]
[1767776925062,6.5242393,3236.2,3235.4,0.002]
[1767776925268,0.65242393,3236.1,3235.4,0.002]
[1767776925436,0.65242393,3236.1,3235.0,0.002]
[1767776925638,0.65242393,3236.1,3235.0,3.09318819]
[1767776925841,0.69105067,3236.1,3235.1,3.09106872]
[1767776926747,3.09023485,3236.0,3235.0,3.99503988]
[1767776926948,3.09023485,3236.0,3235.0,4.70367107]
[1767776927658,3.78122654,3236.1,3235.0,7.79486117]
[1767776928241,3.78122654,3236.1,3235.0,4.70367107]
[1767776928468,3.78122654,3236.1,3235.0,7.79486117]
[1767776929967,3.78122654,3236.1,3235.0,4.70367107]
[1767776930358,0.37812265,3236.0,3235.0,4.70367107]
[1767776930973,0.37812265,3236.0,3235.0,7.79486117]
[1767776931853,7.21758374,3236.2,3235.0,4.70367107]
[1767776932165,4.08889943,3236.2,3235.0,7.79486117]
[1767776932367,4.12752497,3236.2,3235.1,0.90184978]
[1767776932571,7.21758374,3236.2,3235.1,0.90184978]
[1767776932767,7.1789582,3236.2,3235.1,0.90184978]
[1767776932967,4.80679525,3236.2,3235.1,1.37221689]
[1767776933170,4.84542079,3236.2,3235.1,1.37221689]
[1767776933672,4.80679525,3236.2,3235.1,1.37221689]
[1767776934061,4.80679525,3236.2,3235.2,3.09099901]
[1767776934263,4.84542079,3236.2,3235.2,3.99284879]
[1767776934440,4.08889943,3236.2,3235.2,4.7484783]
[1767776934647,3.09005877,3236.2,3235.3,0.90184978]
[1767776935047,3.08977116,3236.5,3235.3,0.90184978]
[1767776935242,0.03862316,3236.4,3235.3,0.90184978]
[1767776936171,3.08994839,3236.3,3235.4,3.09080793]
[1767776936484,3.12851806,3236.4,3235.4,1.37554643]
[1767776936685,0.99884066,3236.3,3235.4,0.47369665]
[1767776936852,0.03862554,3236.2,3235.4,0.47369665]
[1767776937681,0.03862435,3236.3,3235.4,1.37554643]
[1767776937905,0.001,3235.9,3235.4,1.37554643]
[1767776938800,0.001,3235.9,3235.4,4.46628983]
[1767776939002,0.001,3235.9,3235.5,0.44682898]
[1767776941584,0.001,3235.9,3235.4,0.90184978]
[1767776941889,0.001,3235.9,3235.3,3.09286129]
[1767776941890,0.001,3235.9,3235.3,0.002]
[1767776942072,0.001,3235.9,3235.3,3.09289729]
[1767776942604,0.001,3235.9,3235.3,0.002]
[1767776943382,0.93179669,3235.9,3235.0,0.002]
[1767776943587,0.93079669,3235.7,3234.5,3.09160268]
[1767776944021,0.93079669,3235.7,3234.6,3.09152827]
[1767776945082,0.40220315,3235.8,3234.6,0.92239165]
[1767776945289,6.22037617,3235.9,3234.6,0.92239165]
[1767776946801,7.15117286,3235.9,3234.6,0.92239165]
[1767776946978,7.11254374,3235.9,3234.6,0.92239165]
[1767776947174,7.11254374,3235.9,3234.6,4.01392302]
[1767776947599,7.11254374,3235.9,3234.6,7.10549539]
[1767776947811,0.71125437,3235.8,3234.7,0.71054954]
[1767776948110,0.93079669,3235.7,3234.6,0.92239165]
[1767776948286,0.93079669,3235.7,3234.3,4.01423747]
[1767776948483,0.93079669,3235.7,3234.3,0.92239165]
[1767776948678,0.93079669,3235.7,3234.4,3.09175957]
[1767776949220,0.93079669,3235.5,3233.7,0.002]
[1767776949522,12.36246752,3235.6,3233.7,0.002]
[1767776949523,0.93079669,3235.3,3233.7,0.002]
[1767776950379,0.93079669,3235.3,3233.7,3.09441084]
[1767776950593,0.93079669,3235.3,3233.7,0.002]
[1767776951011,0.93079669,3235.3,3234.0,0.002]
[1767776951192,0.93079669,3235.0,3234.0,0.002]
[1767776953409,7.11336801,3234.9,3234.0,0.002]
[1767776953802,0.93079669,3234.8,3234.0,0.002]
[1767776955685,3.09147679,3234.7,3234.0,0.002]
[1767776956084,6.18295358,3234.7,3234.0,0.002]
[1767776956284,0.71137503,3234.6,3234.0,0.002]
[1767776957913,3.80301864,3234.6,3234.0,0.002]
[1767776958514,3.84166329,3234.6,3234.0,0.002]
[1767776958810,6.9333069,3234.6,3233.7,0.002]
[1767776959004,6.89466225,3234.6,3233.7,0.002]
[1767776959206,0.68946623,3234.5,3233.7,0.002]
[1767776959792,0.03864465,3234.6,3233.7,0.002]
[1767776960113,3.13022865,3234.6,3233.7,0.002]
[1767776960280,0.93079669,3234.5,3233.5,0.002]
[1767776960716,0.96944253,3234.5,3233.5,0.002]
[1767776961225,0.96944253,3234.5,3233.5,3.09462201]
[1767776961522,0.71526105,3234.4,3233.6,4.0149098]
[1767776961685,0.03864584,3234.5,3233.6,4.0149098]
[1767776962019,3.09176354,3234.4,3233.6,0.92239165]
[1767776962246,0.03864823,3234.3,3233.6,0.92239165]
[1767776962538,0.03864823,3234.3,3233.6,4.01490896]
[1767776962681,0.03864823,3234.3,3233.7,0.92239165]
[1767776962894,0.03864704,3234.4,3233.7,0.92239165]
[1767776963098,0.6608506,3234.4,3233.7,0.92239165]
[1767776964232,0.6608506,3234.4,3233.7,4.01482424]
[1767776964233,0.62220356,3234.4,3233.7,4.01482424]
[1767776964415,3.13023336,3234.6,3233.7,4.01482424]
[1767776964736,0.03864465,3234.6,3233.8,0.92239165]
[1767776965036,3.3170737,3235.2,3234.0,0.92239165]
[1767776965037,0.22601231,3235.2,3234.0,0.92239165]
[1767776965205,3.12967625,3235.2,3234.0,0.92239165]
[1767776965608,3.09103877,3235.2,3234.0,0.92239165]
[1767776965805,0.001,3235.9,3234.0,0.92239165]
[1767776965806,0.93079669,3235.7,3234.0,0.92239165]
[1767776966158,0.03963271,3235.6,3234.4,0.92239165]
[1767776967347,0.9704294,3235.6,3234.4,0.92239165]
[1767776967643,0.71515678,3235.5,3234.4,1.63301086]
[1767776967813,0.03863509,3235.4,3234.4,1.63301086]
[1767776968421,3.12944333,3235.4,3234.5,3.09166795]
[1767776968629,0.03863509,3235.4,3234.5,3.09166795]
[1767776969242,3.12945237,3235.4,3234.5,3.09166795]
[1767776969543,0.03863509,3235.4,3234.5,3.56413583]
[1767776969946,3.12935476,3235.5,3234.5,7.57819543]
[1767776970246,0.0386339,3235.5,3234.6,0.92239165]
[1767776970410,0.001,3235.6,3234.7,4.01386844]
[1767776970606,0.03963271,3235.6,3234.7,4.01386844]
[1767776970811,0.03963271,3235.6,3234.8,0.71054181]
[1767776972022,0.001,3235.6,3234.9,0.97983992]
[1767776972639,0.001,3235.6,3235.0,4.07103002]
[1767776973008,0.001,3235.6,3235.1,0.97983992]
[1767776973208,0.001,3235.6,3235.1,1.49862427]
[1767776975038,0.001,3235.6,3234.8,0.97983992]
[1767776975242,0.98771716,3235.6,3234.4,0.97983992]
[1767776975434,0.0386339,3235.5,3234.5,3.09159601]
[1767776975813,0.0386339,3235.5,3234.6,3.09155669]
[1767776976044,0.0386339,3235.5,3234.6,3.80787251]
[1767776976346,0.0386339,3235.5,3234.6,0.71631582]
[1767776976646,1.02535106,3235.5,3234.4,0.97983992]
[1767776977145,0.001,3235.2,3234.4,0.97983992]
[1767776977350,0.001,3235.2,3234.4,4.07160329]
[1767776977841,0.001,3235.2,3234.4,3.09176337]
[1767776979032,0.001,3235.2,3234.4,3.09172237]
[1767776979554,0.001,3235.2,3234.2,4.07174158]
[1767776979734,0.001,3235.2,3234.2,7.57087047]
[1767776980321,0.001,3235.2,3234.2,4.47891574]
[1767776980525,0.001,3235.2,3234.2,7.57087047]
[1767776981740,0.001,3235.2,3234.3,0.97983992]
[1767776984961,0.001,3235.2,3234.5,0.97983992]
[1767776987051,0.001,3235.2,3234.6,0.97983992]
[1767776991470,0.001,3235.2,3234.7,0.97983992]
[1767776992741,0.03963748,3235.2,3234.7,0.97983992]
[1767776993762,0.001,3235.2,3234.7,4.07125378]
[1767776993967,0.001,3235.2,3234.7,0.97983992]
[1767776995699,0.001,3235.2,3234.8,0.97983992]
[1767776997178,0.001,3235.2,3234.9,0.97983992]
[1767776997793,0.0386339,3235.5,3234.9,4.07109591]
[1767776997997,0.0386339,3235.5,3234.9,0.97983992]
[1767777000310,0.0386339,3235.5,3235.0,0.97983992]
[1767777000465,0.001,3235.6,3235.1,0.97983992]
[1767777000869,0.001,3235.9,3235.5,0.97983992]
[1767777001793,0.98671716,3236.4,3235.7,0.94360531]
[1767777001794,0.03862316,3236.4,3235.7,0.94360531]
[1767777001972,9.30473188,3237.6,3235.7,0.94360531]
[1767777002176,9.499668,3237.7,3235.9,0.94360531]
[1767777002177,0.90500179,3237.3,3235.9,0.94360531]
[1767777002385,0.90500179,3237.1,3235.9,0.94360531]
[1767777002584,0.038616,3237.0,3235.9,0.94360531]
[1767777004403,3.08937563,3236.9,3236.0,0.94360531]
[1767777004711,0.03861838,3236.8,3236.0,0.94360531]
[1767777004917,0.66035113,3236.8,3236.0,0.94360531]
[1767777005810,0.03861838,3236.8,3236.0,0.94360531]
[1767777005983,3.1275105,3237.4,3236.0,0.94360531]
[1767777006189,6.21640977,3237.4,3236.0,0.94360531]
[1767777006405,6.21640977,3237.4,3236.2,0.99468991]
[1767777008008,3.1275105,3237.4,3236.2,0.99468991]
[1767777008318,6.21640977,3237.4,3236.2,0.99468991]
[1767777008491,3.08908933,3237.2,3236.3,0.99468991]
[1767777008696,0.0386148,3237.1,3236.3,0.99468991]
[1767777010432,0.62164098,3237.3,3236.3,0.99468991]
[1767777010629,0.001,3237.7,3236.5,0.99468991]
[1767777010942,0.96421987,3237.5,3236.0,3.0902302]
[1767777011094,0.96421987,3237.3,3236.2,0.99468991]
[1767777011299,4.54302265,3237.6,3236.2,0.99468991]
[1767777011300,0.96421987,3237.1,3236.2,0.99468991]
[1767777011522,0.03861361,3237.2,3235.3,0.99468991]
[1767777011523,1.00283587,3237.0,3235.3,0.99468991]
[1767777011724,1.00283587,3237.0,3235.6,0.99468991]
[1767777012028,1.00283587,3237.0,3236.3,0.002]
[1767777012199,1.00283587,3237.0,3236.0,0.002]
[1767777013302,0.96421987,3236.8,3236.0,0.002]
[1767777013526,0.96421987,3236.6,3235.5,0.99468991]
[1767777013832,1.71713656,3236.7,3234.9,0.99468991]
[1767777013833,0.96421987,3236.3,3234.9,0.99468991]
[1767777013998,4.54302265,3236.4,3234.7,0.002]
[1767777013999,0.96421987,3235.9,3234.7,0.002]
[1767777015538,0.96421987,3235.7,3234.7,0.002]
[1767777018358,3.09061688,3235.6,3234.7,0.002]
[1767777018527,3.09061688,3235.6,3234.7,0.99668991]
[1767777019243,7.14545363,3235.6,3234.7,0.99668991]
[1767777019553,0.71454536,3235.5,3234.7,0.99668991]
[1767777020050,6.18123376,3235.6,3234.7,0.99668991]
[1767777020221,3.09061688,3235.6,3234.7,0.99668991]
[1767777020427,3.09052137,3235.7,3234.7,0.99668991]
[1767777020628,7.14526261,3235.7,3234.7,0.99668991]
[1767777021051,0.96421987,3235.6,3234.7,0.99668991]
[1767777021395,0.96421987,3235.4,3234.0,0.99468991]
[1767777022571,0.71452626,3235.5,3234.0,0.99468991]
[1767777022572,0.96421987,3235.2,3234.0,0.99468991]
[1767777024651,0.96421987,3235.0,3234.0,0.99468991]
[1767777024845,0.96421987,3234.8,3234.6,0.002]
[1767777025051,0.96421987,3234.8,3233.7,0.99468991]
[1767777026483,0.96421987,3234.8,3233.8,0.99468991]
[1767777026781,6.18276244,3234.8,3233.9,0.99468991]
[1767777027352,0.96421987,3234.7,3233.9,0.99468991]
[1767777027558,0.96421987,3234.5,3233.6,0.99468991]
[1767777028780,3.09176354,3234.4,3233.6,0.99468991]
[1767777028984,3.09170484,3234.5,3233.7,0.99468991]
[1767777029188,3.80630928,3234.6,3233.7,0.99468991]
[1767777030485,0.03864584,3234.5,3233.7,0.99468991]
[1767777030686,0.73228995,3234.5,3233.7,0.99468991]
[1767777030989,3.7853157,3234.5,3233.8,0.99468991]
[1767777032165,0.69364411,3234.5,3233.8,0.99468991]
[1767777032368,3.09150099,3234.7,3233.8,0.99468991]
[1767777032781,0.03864465,3234.6,3233.8,0.99468991]
[1767777033287,3.09166795,3234.5,3233.8,0.99468991]
[1767777033889,0.03864704,3234.4,3233.8,0.99468991]
[1767777034080,0.66084533,3234.4,3233.8,0.99468991]
[1767777034668,1.61929149,3234.4,3233.5,0.92024967]
[1767777035385,6.18390946,3234.2,3233.5,0.92024967]
[1767777035561,6.22255889,3234.2,3233.5,0.92024967]
[1767777035760,3.13060416,3234.2,3233.5,0.92024967]
[1767777035990,0.71809308,3234.1,3233.5,0.92024967]
[1767777036978,0.71809308,3234.1,3233.8,0.002]
[1767777037493,3.71397728,3234.4,3233.8,0.002]
[1767777037790,3.71397728,3234.4,3233.8,0.92024967]
[1767777037964,0.03864823,3234.3,3233.8,0.92024967]
[1767777038292,0.62219829,3234.4,3233.8,0.92024967]
[1767777038501,7.14101748,3234.9,3233.8,0.92024967]
[1767777039401,6.18295358,3234.7,3233.8,0.92024967]
[1767777039576,0.03864465,3234.6,3233.8,0.92024967]
[1767777040408,0.03864465,3234.6,3233.5,0.002]
[1767777040409,0.99709081,3234.6,3233.5,0.002]
[1767777040695,0.95844616,3234.4,3233.5,0.002]
[1767777040894,0.03864823,3234.3,3233.5,0.002]
[1767777041259,2.02424412,3234.5,3233.6,0.91824967]
[1767777041482,3.09176354,3234.4,3233.6,0.91824967]
[1767777042166,0.03864823,3234.3,3233.7,0.91824967]
[1767777042366,0.62221278,3234.3,3233.7,0.91824967]
[1767777042566,4.0498297,3234.8,3233.7,0.91824967]
[1767777042567,0.03864584,3234.5,3233.7,0.91824967]
[1767777043072,0.997092,3234.5,3233.6,0.91824967]
[1767777043390,6.18295358,3234.7,3233.7,0.91824967]
[1767777043568,3.09176354,3234.4,3233.7,0.91824967]
[1767777043764,0.03864823,3234.3,3233.7,0.91824967]
[1767777043987,0.03864823,3234.3,3233.8,0.91824967]
[1767777044207,0.03864704,3234.4,3233.8,0.91824967]
[1767777044367,0.49008423,3234.4,3233.8,0.91824967]
[1767777044763,0.49008423,3234.4,3233.5,0.92024967]
[1767777046798,7.14216442,3234.3,3233.5,0.92024967]
[1767777046966,0.03864943,3234.2,3233.5,0.92024967]
[1767777047166,0.71808139,3234.1,3233.5,0.92024967]
[1767777047382,0.71808139,3234.1,3233.5,4.01281168]
[1767777047588,0.03864943,3234.2,3233.5,0.92024967]
[1767777048574,0.03864943,3234.2,3233.5,4.01286464]
[1767777048803,0.95844616,3234.3,3233.5,4.01286464]
[1767777048984,0.03864943,3234.2,3233.6,0.91824967]
[1767777049885,0.03864943,3234.2,3233.8,0.002]
[1767777050211,0.6673692,3234.2,3233.8,0.002]
[1767777050367,0.03865062,3234.1,3233.8,0.002]
[1767777051608,0.03864823,3234.3,3233.8,0.002]
[1767777051780,3.13057277,3234.3,3233.8,0.002]
[1767777058506,0.03864823,3234.3,3233.8,0.002]
[1767777058829,0.03864823,3234.3,3233.4,0.002]
[1767777058830,0.95844616,3234.2,3233.4,0.002]
[1767777058981,0.95844616,3234.0,3232.9,0.92024967]
[1767777059184,6.18375288,3234.3,3232.9,0.92024967]
[1767777059185,0.95844616,3233.8,3232.9,0.92024967]
[1767777059915,0.03865062,3234.1,3232.7,0.91824967]
[1767777059916,0.95844616,3233.6,3232.7,0.91824967]
[1767777060285,0.95844616,3233.6,3232.6,0.003]
[1767777060510,0.95844616,3233.6,3232.6,0.92124967]
[1767777061027,0.93142799,3234.1,3232.8,0.91824967]
[1767777061318,0.03865182,3234.0,3233.0,0.91824967]
[1767777061478,0.001,3234.0,3233.0,0.91824967]
[1767777061681,0.84192842,3234.7,3233.8,0.95324693]
[1767777061911,3.09157237,3234.6,3233.8,0.95324693]
[1767777062116,0.97860705,3234.5,3233.8,0.95324693]
[1767777062323,1.01720457,3234.4,3233.5,0.95324693]
[1767777062836,1.01720457,3234.4,3233.2,4.04609552]
[1767777063191,1.01720457,3234.4,3232.9,0.95324693]
[1767777063802,1.01720457,3234.4,3233.0,0.95324693]
[1767777064005,0.97860705,3234.2,3232.7,0.95324693]
[1767777064302,0.97860705,3234.0,3232.7,0.95324693]
[1767777064495,0.95283047,3233.8,3232.7,0.95324693]
[1767777064697,0.95283047,3233.8,3232.7,4.04657182]
[1767777064903,0.95283047,3233.8,3232.9,3.09319677]
[1767777065225,0.03859752,3233.7,3232.8,0.99879901]
[1767777065786,0.03859752,3233.7,3232.8,4.09208942]
[1767777066027,6.1850569,3233.6,3232.8,0.99879901]
[1767777066187,6.1850569,3233.6,3232.6,0.003]
[1767777066188,0.95283047,3233.5,3232.6,0.003]
[1767777066586,0.95283047,3233.5,3232.5,0.002]
[1767777067482,0.99142799,3233.5,3232.5,0.002]
[1767777067689,0.99142799,3233.5,3232.4,0.002]